[Event "Titled Tuesday Blitz June 27 Late 2023"]
[White "Ng, Matthew K"]
[Black "Nasir, Zehn"]
[WhiteFideId "2094371"]
[BlackFideId "2613239"]
[WhiteElo "2092"]
[BlackElo "2545"]
[Result "0-1"]
[Round "1"]
[TimeControl "180+2"]
[Date "2023.06.27"]
[WhiteClock "0:00:00"]
[BlackClock "0:00:07"]
[Board "180"]

1. e4 {[%clk 0:02:57]}  c6 {[%clk 0:02:23]} 2. d4 {[%clk 0:02:55]}  d5 {[%clk 0:02:23]} 3. exd5 {[%clk 0:02:56]}  cxd5 {[%clk 0:02:24]} 4. Bd3 {[%clk 0:02:56]}  Nc6 {[%clk 0:02:16]} 5. c3 {[%clk 0:02:56]}  Qc7 {[%clk 0:02:15]} 6. Ne2 {[%clk 0:02:52]}  Bg4 {[%clk 0:02:15]} 7. h3 {[%clk 0:02:49]}  Bh5 {[%clk 0:02:11]} 8. Bf4 {[%clk 0:02:40]}  Qxf4 {[%clk 0:02:03]} 9. Nxf4 {[%clk 0:02:39]}  Bxd1 {[%clk 0:02:04]} 10. Kxd1 {[%clk 0:02:39]}  e6 {[%clk 0:02:05]} 11. Re1 {[%clk 0:02:38]}  Nf6 {[%clk 0:02:03]} 12. Nd2 {[%clk 0:02:33]}  Bd6 {[%clk 0:01:46]} 13. Ne2 {[%clk 0:02:27]}  O-O {[%clk 0:01:46]} 14. Nf3 {[%clk 0:02:21]}  Rab8 {[%clk 0:01:46]} 15. Bb5 {[%clk 0:02:15]}  Rfc8 {[%clk 0:01:45]} 16. Ng3 {[%clk 0:02:12]}  Bxg3 {[%clk 0:01:37]} 17. fxg3 {[%clk 0:02:11]}  a6 {[%clk 0:01:37]} 18. Bd3 {[%clk 0:02:10]}  b5 {[%clk 0:01:35]} 19. Ne5 {[%clk 0:02:08]}  Nxe5 {[%clk 0:01:26]} 20. Rxe5 {[%clk 0:02:08]}  a5 {[%clk 0:01:26]} 21. Kd2 {[%clk 0:02:07]}  b4 {[%clk 0:01:26]} 22. Rb1 {[%clk 0:02:02]}  Kf8 {[%clk 0:01:22]} 23. g4 {[%clk 0:02:01]}  h6 {[%clk 0:01:21]} 24. Ree1 {[%clk 0:01:54]}  Ke7 {[%clk 0:01:20]} 25. g3 {[%clk 0:01:53]}  Kd6 {[%clk 0:01:20]} 26. cxb4 {[%clk 0:01:46]}  axb4 {[%clk 0:01:19]} 27. Rec1 {[%clk 0:01:46]}  Rxc1 {[%clk 0:01:10]} 28. Rxc1 {[%clk 0:01:46]}  Ra8 {[%clk 0:01:11]} 29. Bb1 {[%clk 0:01:45]}  Nd7 {[%clk 0:01:01]} 30. Ke3 {[%clk 0:01:42]}  Nb6 {[%clk 0:01:01]} 31. b3 {[%clk 0:01:42]}  Rc8 {[%clk 0:00:54]} 32. Rxc8 {[%clk 0:01:34]}  Nxc8 {[%clk 0:00:55]} 33. h4 {[%clk 0:01:33]}  g5 {[%clk 0:00:50]} 34. Bh7 {[%clk 0:01:24]}  f6 {[%clk 0:00:47]} 35. Bd3 {[%clk 0:01:18]}  Na7 {[%clk 0:00:46]} 36. Kd2 {[%clk 0:01:08]}  Nc6 {[%clk 0:00:45]} 37. Ke3 {[%clk 0:01:07]}  e5 {[%clk 0:00:43]} 38. dxe5+ {[%clk 0:01:03]}  Kxe5 {[%clk 0:00:35]} 39. Bb5 {[%clk 0:00:53]}  Nd4 {[%clk 0:00:34]} 40. Bd7 {[%clk 0:00:47]}  Nc2+ {[%clk 0:00:21]} 41. Kd2 {[%clk 0:00:41]}  Na3 {[%clk 0:00:19]} 42. Kd3 {[%clk 0:00:39]}  Nb1 {[%clk 0:00:16]} 43. Bf5 {[%clk 0:00:25]}  Na3 {[%clk 0:00:14]} 44. Bd7 {[%clk 0:00:23]}  d4 {[%clk 0:00:14]} 45. Bc6 {[%clk 0:00:19]}  Nb1 {[%clk 0:00:13]} 46. Be8 {[%clk 0:00:14]}  Nc3 {[%clk 0:00:12]} 47. Bg6 {[%clk 0:00:10]}  Nxa2 {[%clk 0:00:12]} 48. Kc4 {[%clk 0:00:08]}  Nc1 {[%clk 0:00:04]} 49. Kxb4 {[%clk 0:00:07]}  d3 {[%clk 0:00:03]} 50. Kc3 {[%clk 0:00:06]}  d2 {[%clk 0:00:04]} 51. Kxd2 {[%clk 0:00:06]}  Nxb3+ {[%clk 0:00:04]} 52. Kc3 {[%clk 0:00:07]}  Nd4 {[%clk 0:00:04]} 53. h5 {[%clk 0:00:06]}  Ne2+ {[%clk 0:00:04]} 54. Kd3 {[%clk 0:00:06]}  Nxg3 {[%clk 0:00:05]} 55. Ke3 {[%clk 0:00:07]}  Nf1+ {[%clk 0:00:04]} 56. Ke2 {[%clk 0:00:06]}  Nh2 {[%clk 0:00:04]} 57. Kf2 {[%clk 0:00:06]}  Nxg4+ {[%clk 0:00:03]} 58. Kg3 {[%clk 0:00:05]}  Ne3 {[%clk 0:00:04]} 59. Kf3 {[%clk 0:00:05]}  Nd5 {[%clk 0:00:04]} 60. Bf7 {[%clk 0:00:04]}  Nf4 {[%clk 0:00:05]} 61. Be8 {[%clk 0:00:03]}  f5 {[%clk 0:00:05]} 62. Kg3 {[%clk 0:00:03]}  Ne2+ {[%clk 0:00:04]} 63. Kf2 {[%clk 0:00:03]}  Nd4 {[%clk 0:00:05]} 64. Ke3 {[%clk 0:00:04]}  Ne6 {[%clk 0:00:06]} 65. Bd7 {[%clk 0:00:03]}  f4+ {[%clk 0:00:06]} 66. Kf3 {[%clk 0:00:02]}  Kf5 {[%clk 0:00:07]} 67. Bc8 {[%clk 0:00:02]}  g4+ {[%clk 0:00:07]} 68. Kf2 {[%clk 0:00:00]}  Ke5 {[%clk 0:00:07]} 0-1


[Site "https://www.chess.com"]

[Event "Titled Tuesday Blitz June 27 Late 2023"]
[White "O`Gorman, Tom"]
[Black "Bongo Akanga Ndjila, Barthelemy"]
[WhiteFideId "2508249"]
[BlackFideId "10609431"]
[WhiteElo "2543"]
[BlackElo "2081"]
[Result "1-0"]
[Round "1"]
[TimeControl "180+2"]
[Date "2023.06.27"]
[WhiteClock "0:01:45"]
[BlackClock "0:00:19"]
[Board "183"]

1. e4 {[%clk 0:02:59]}  c6 {[%clk 0:02:58]} 2. Nc3 {[%clk 0:02:55]}  d5 {[%clk 0:02:59]} 3. Nf3 {[%clk 0:02:55]}  dxe4 {[%clk 0:02:58]} 4. Nxe4 {[%clk 0:02:56]}  Nf6 {[%clk 0:02:59]} 5. Qe2 {[%clk 0:02:55]}  Bf5 {[%clk 0:02:54]} 6. Nxf6+ {[%clk 0:02:55]}  gxf6 {[%clk 0:02:54]} 7. d4 {[%clk 0:02:56]}  e6 {[%clk 0:02:53]} 8. g3 {[%clk 0:02:56]}  Bg4 {[%clk 0:02:52]} 9. c3 {[%clk 0:02:54]}  Bd6 {[%clk 0:02:51]} 10. Bg2 {[%clk 0:02:54]}  Nd7 {[%clk 0:02:51]} 11. O-O {[%clk 0:02:50]}  Qc7 {[%clk 0:02:46]} 12. h3 {[%clk 0:02:47]}  Bf5 {[%clk 0:02:44]} 13. Nh4 {[%clk 0:02:45]}  Bg6 {[%clk 0:02:42]} 14. c4 {[%clk 0:02:43]}  c5 {[%clk 0:02:20]} 15. d5 {[%clk 0:02:41]}  O-O-O {[%clk 0:02:16]} 16. dxe6 {[%clk 0:02:34]}  fxe6 {[%clk 0:02:16]} 17. Nxg6 {[%clk 0:02:32]}  hxg6 {[%clk 0:02:15]} 18. Qxe6 {[%clk 0:02:32]}  Rde8 {[%clk 0:02:10]} 19. Qg4 {[%clk 0:02:27]}  g5 {[%clk 0:02:02]} 20. Bd2 {[%clk 0:02:22]}  Kb8 {[%clk 0:02:02]} 21. Bc3 {[%clk 0:02:20]}  Be5 {[%clk 0:02:01]} 22. Rac1 {[%clk 0:02:14]}  Bxc3 {[%clk 0:01:37]} 23. Rxc3 {[%clk 0:02:13]}  Ne5 {[%clk 0:01:33]} 24. Qf5 {[%clk 0:02:12]}  Rhf8 {[%clk 0:01:17]} 25. Rb3 {[%clk 0:02:10]}  Nc6 {[%clk 0:01:16]} 26. Qxc5 {[%clk 0:02:09]}  Kc8 {[%clk 0:01:01]} 27. Bxc6 {[%clk 0:01:48]}  Qxc6 {[%clk 0:01:00]} 28. Qxc6+ {[%clk 0:01:48]}  bxc6 {[%clk 0:01:00]} 29. Re3 {[%clk 0:01:49]}  Rxe3 {[%clk 0:00:52]} 30. fxe3 {[%clk 0:01:49]}  f5 {[%clk 0:00:50]} 31. Kf2 {[%clk 0:01:48]}  f4 {[%clk 0:00:49]} 32. exf4 {[%clk 0:01:44]}  gxf4 {[%clk 0:00:49]} 33. Kg2 {[%clk 0:01:45]}  Re8 {[%clk 0:00:34]} 34. Rxf4 {[%clk 0:01:45]}  Re2+ {[%clk 0:00:34]} 35. Rf2 {[%clk 0:01:45]}  Re4 {[%clk 0:00:34]} 36. b3 {[%clk 0:01:45]}  Kc7 {[%clk 0:00:34]} 37. h4 {[%clk 0:01:45]}  Kd6 {[%clk 0:00:33]} 38. Kf3 {[%clk 0:01:46]}  Re1 {[%clk 0:00:30]} 39. g4 {[%clk 0:01:46]}  Rg1 {[%clk 0:00:29]} 40. h5 {[%clk 0:01:46]}  Kc5 {[%clk 0:00:29]} 41. Rh2 {[%clk 0:01:44]}  Rf1+ {[%clk 0:00:28]} 42. Ke4 {[%clk 0:01:44]}  Rg1 {[%clk 0:00:27]} 43. Kf5 {[%clk 0:01:44]}  Rf1+ {[%clk 0:00:27]} 44. Kg5 {[%clk 0:01:44]}  Kb4 {[%clk 0:00:25]} 45. h6 {[%clk 0:01:45]}  Rf7 {[%clk 0:00:19]} 46. h7 {[%clk 0:01:45]} 1-0


[Site "https://www.chess.com"]

[Event "Titled Tuesday Blitz June 27 Late 2023"]
[White "Allam, Yara"]
[Black "JackRodgers"]
[WhiteFideId "10615709"]
[WhiteElo "2070"]
[BlackElo "2542"]
[Result "0-1"]
[Round "1"]
[TimeControl "180+2"]
[Date "2023.06.27"]
[WhiteClock "0:00:37"]
[BlackClock "0:00:22"]
[Board "184"]

1. e4 {[%clk 0:02:55]}  c5 {[%clk 0:02:59]} 2. Nf3 {[%clk 0:02:55]}  g6 {[%clk 0:02:59]} 3. d4 {[%clk 0:02:55]}  cxd4 {[%clk 0:03:00]} 4. Nxd4 {[%clk 0:02:56]}  Bg7 {[%clk 0:03:01]} 5. Nc3 {[%clk 0:02:57]}  Nc6 {[%clk 0:03:01]} 6. Be3 {[%clk 0:02:58]}  Nf6 {[%clk 0:03:01]} 7. Nxc6 {[%clk 0:02:57]}  bxc6 {[%clk 0:03:01]} 8. e5 {[%clk 0:02:58]}  Ng8 {[%clk 0:03:01]} 9. f4 {[%clk 0:02:58]}  Nh6 {[%clk 0:03:02]} 10. Qd2 {[%clk 0:02:57]}  d6 {[%clk 0:02:57]} 11. O-O-O {[%clk 0:02:55]}  d5 {[%clk 0:02:23]} 12. h3 {[%clk 0:02:53]}  Nf5 {[%clk 0:02:07]} 13. Bf2 {[%clk 0:02:52]}  e6 {[%clk 0:02:02]} 14. g4 {[%clk 0:02:50]}  Ne7 {[%clk 0:02:03]} 15. Bc5 {[%clk 0:02:47]}  a5 {[%clk 0:01:52]} 16. Ne4 {[%clk 0:02:42]}  O-O {[%clk 0:01:47]} 17. Nf6+ {[%clk 0:02:40]}  Kh8 {[%clk 0:01:47]} 18. h4 {[%clk 0:02:38]}  Re8 {[%clk 0:01:46]} 19. h5 {[%clk 0:02:31]}  Ng8 {[%clk 0:01:05]} 20. Nxh7 {[%clk 0:02:02]}  Kxh7 {[%clk 0:00:55]} 21. hxg6+ {[%clk 0:02:02]}  Kxg6 {[%clk 0:00:56]} 22. Bd3+ {[%clk 0:02:02]}  f5 {[%clk 0:00:57]} 23. exf6+ {[%clk 0:01:43]}  Kxf6 {[%clk 0:00:52]} 24. Qc3+ {[%clk 0:01:41]}  Kf7 {[%clk 0:00:52]} 25. Rh7 {[%clk 0:01:37]}  Nf6 {[%clk 0:00:41]} 26. g5 {[%clk 0:01:26]}  Nxh7 {[%clk 0:00:34]} 27. Bxh7 {[%clk 0:01:24]}  Bxc3 {[%clk 0:00:34]} 28. g6+ {[%clk 0:01:11]}  Kg7 {[%clk 0:00:31]} 29. bxc3 {[%clk 0:01:10]}  e5 {[%clk 0:00:31]} 30. fxe5 {[%clk 0:01:03]}  Qg5+ {[%clk 0:00:29]} 31. Kb1 {[%clk 0:00:58]}  Rb8+ {[%clk 0:00:30]} 32. Ka1 {[%clk 0:00:58]}  Bf5 {[%clk 0:00:24]} 33. Bd4 {[%clk 0:00:51]}  Re6 {[%clk 0:00:24]} 34. Rg1 {[%clk 0:00:44]}  Qxg1+ {[%clk 0:00:22]} 35. Bxg1 {[%clk 0:00:37]}  Bxg6 {[%clk 0:00:22]} 0-1


[Site "https://www.chess.com"]

[Event "Titled Tuesday Blitz June 27 Late 2023"]
[White "Manukyan, Artyom"]
[Black "Aqib Javaid Butt"]
[WhiteFideId "13305786"]
[BlackFideId "7801262"]
[WhiteElo "2541"]
[BlackElo "2020"]
[Result "1-0"]
[Round "1"]
[TimeControl "180+2"]
[Date "2023.06.27"]
[WhiteClock "0:00:50"]
[BlackClock "0:00:45"]
[Board "185"]

1. Nf3 {[%clk 0:02:57]}  d5 {[%clk 0:02:59]} 2. c4 {[%clk 0:02:55]}  c6 {[%clk 0:02:59]} 3. g3 {[%clk 0:02:55]}  Nf6 {[%clk 0:02:59]} 4. Bg2 {[%clk 0:02:55]}  g6 {[%clk 0:02:59]} 5. O-O {[%clk 0:02:56]}  Bg7 {[%clk 0:02:59]} 6. d4 {[%clk 0:02:50]}  O-O {[%clk 0:02:56]} 7. cxd5 {[%clk 0:02:48]}  cxd5 {[%clk 0:02:55]} 8. Ne5 {[%clk 0:02:49]}  Nbd7 {[%clk 0:02:48]} 9. Nc3 {[%clk 0:02:46]}  e6 {[%clk 0:02:43]} 10. f4 {[%clk 0:02:24]}  Ne8 {[%clk 0:02:33]} 11. Be3 {[%clk 0:02:22]}  f6 {[%clk 0:02:31]} 12. Nxd7 {[%clk 0:02:10]}  Bxd7 {[%clk 0:02:32]} 13. Rc1 {[%clk 0:01:58]}  Nd6 {[%clk 0:02:29]} 14. g4 {[%clk 0:01:56]}  Nc4 {[%clk 0:02:26]} 15. Bf2 {[%clk 0:01:54]}  Nxb2 {[%clk 0:02:24]} 16. Qb3 {[%clk 0:01:53]}  Nc4 {[%clk 0:02:21]} 17. Rfd1 {[%clk 0:01:50]}  Na5 {[%clk 0:02:04]} 18. Qa3 {[%clk 0:01:36]}  Bc6 {[%clk 0:01:59]} 19. Qc5 {[%clk 0:01:26]}  Rc8 {[%clk 0:01:55]} 20. Qxa7 {[%clk 0:01:24]}  b6 {[%clk 0:01:47]} 21. Rb1 {[%clk 0:01:15]}  Nc4 {[%clk 0:01:45]} 22. Nb5 {[%clk 0:00:54]}  Bxb5 {[%clk 0:01:32]} 23. Rxb5 {[%clk 0:00:55]}  Ra8 {[%clk 0:01:26]} 24. Qb7 {[%clk 0:00:53]}  Rf7 {[%clk 0:01:23]} 25. Rxd5 {[%clk 0:00:52]}  exd5 {[%clk 0:01:02]} 26. Bxd5 {[%clk 0:00:53]}  Nd6 {[%clk 0:00:51]} 27. Qxa8 {[%clk 0:00:51]}  Qxa8 {[%clk 0:00:46]} 28. Bxa8 {[%clk 0:00:52]}  Ra7 {[%clk 0:00:47]} 29. Bd5+ {[%clk 0:00:51]}  Kf8 {[%clk 0:00:47]} 30. e4 {[%clk 0:00:50]}  Rxa2 {[%clk 0:00:45]} 1-0


[Site "https://www.chess.com"]

[Event "Titled Tuesday Blitz June 27 Late 2023"]
[White "Leenhouts, Koen"]
[Black "Sainz Aguirre, Ignacio"]
[WhiteFideId "1008439"]
[BlackFideId "5101727"]
[WhiteElo "2539"]
[BlackElo "1978"]
[Result "1-0"]
[Round "1"]
[TimeControl "180+2"]
[Date "2023.06.27"]
[WhiteClock "0:00:29"]
[BlackClock "0:00:02"]
[Board "187"]

1. d4 {[%clk 0:02:55]}  d5 {[%clk 0:02:59]} 2. c4 {[%clk 0:02:55]}  e6 {[%clk 0:02:59]} 3. Nf3 {[%clk 0:02:55]}  Nf6 {[%clk 0:02:56]} 4. g3 {[%clk 0:02:55]}  dxc4 {[%clk 0:02:52]} 5. Bg2 {[%clk 0:02:55]}  Nbd7 {[%clk 0:02:41]} 6. O-O {[%clk 0:02:55]}  Rb8 {[%clk 0:02:36]} 7. a4 {[%clk 0:02:42]}  a6 {[%clk 0:02:33]} 8. a5 {[%clk 0:02:36]}  c5 {[%clk 0:02:29]} 9. Nc3 {[%clk 0:02:30]}  Be7 {[%clk 0:02:19]} 10. Bf4 {[%clk 0:02:29]}  Ra8 {[%clk 0:02:09]} 11. d5 {[%clk 0:02:26]}  Nxd5 {[%clk 0:02:04]} 12. Nxd5 {[%clk 0:02:26]}  exd5 {[%clk 0:02:04]} 13. Qxd5 {[%clk 0:02:25]}  O-O {[%clk 0:01:58]} 14. Qxc4 {[%clk 0:02:12]}  Nf6 {[%clk 0:01:48]} 15. Rfd1 {[%clk 0:02:10]}  Qe8 {[%clk 0:01:40]} 16. Qc2 {[%clk 0:01:59]}  Qb5 {[%clk 0:01:27]} 17. Ng5 {[%clk 0:01:47]}  h6 {[%clk 0:01:22]} 18. Ne4 {[%clk 0:01:43]}  Nxe4 {[%clk 0:01:20]} 19. Qxe4 {[%clk 0:01:42]}  Bf6 {[%clk 0:01:09]} 20. Bd6 {[%clk 0:01:36]}  Re8 {[%clk 0:00:52]} 21. Qc2 {[%clk 0:01:28]}  Rxe2 {[%clk 0:00:44]} 22. Rd2 {[%clk 0:01:20]}  Bf5 {[%clk 0:00:21]} 23. Rxe2 {[%clk 0:01:11]}  Bxc2 {[%clk 0:00:21]} 24. Rxc2 {[%clk 0:01:12]}  Bd4 {[%clk 0:00:18]} 25. Rac1 {[%clk 0:01:02]}  Re8 {[%clk 0:00:17]} 26. Bxc5 {[%clk 0:00:56]}  Bxc5 {[%clk 0:00:18]} 27. Rxc5 {[%clk 0:00:56]}  Qxb2 {[%clk 0:00:17]} 28. Rc7 {[%clk 0:00:49]}  Re2 {[%clk 0:00:14]} 29. Rf1 {[%clk 0:00:42]}  g6 {[%clk 0:00:13]} 30. Bd5 {[%clk 0:00:33]}  Qf6 {[%clk 0:00:08]} 31. Rxf7 {[%clk 0:00:29]}  Qxf7 {[%clk 0:00:09]} 32. Bxf7+ {[%clk 0:00:29]}  Kxf7 {[%clk 0:00:09]} 33. Rb1 {[%clk 0:00:30]}  Ra2 {[%clk 0:00:09]} 34. Rxb7+ {[%clk 0:00:29]}  Kf8 {[%clk 0:00:08]} 35. Rb6 {[%clk 0:00:29]}  Rxa5 {[%clk 0:00:08]} 36. Rxg6 {[%clk 0:00:30]}  h5 {[%clk 0:00:07]} 37. h4 {[%clk 0:00:30]}  Ra2 {[%clk 0:00:07]} 38. Kg2 {[%clk 0:00:30]}  a5 {[%clk 0:00:07]} 39. Rg5 {[%clk 0:00:31]}  a4 {[%clk 0:00:07]} 40. Rxh5 {[%clk 0:00:31]}  a3 {[%clk 0:00:07]} 41. Ra5 {[%clk 0:00:32]}  Ra1 {[%clk 0:00:08]} 42. g4 {[%clk 0:00:31]}  a2 {[%clk 0:00:08]} 43. h5 {[%clk 0:00:31]}  Kg7 {[%clk 0:00:08]} 44. Ra6 {[%clk 0:00:31]}  Kh7 {[%clk 0:00:07]} 45. g5 {[%clk 0:00:31]}  Kg7 {[%clk 0:00:08]} 46. Ra7+ {[%clk 0:00:31]}  Kf8 {[%clk 0:00:07]} 47. h6 {[%clk 0:00:29]}  Kg8 {[%clk 0:00:02]} 48. g6 {[%clk 0:00:29]} 1-0


[Site "https://www.chess.com"]

[Event "Titled Tuesday Blitz June 27 Late 2023"]
[White "Hajiyev, Kanan"]
[Black "Dmitriev, Sergey"]
[WhiteFideId "13404148"]
[BlackFideId "14101785"]
[WhiteElo "2538"]
[BlackElo "1938"]
[Result "1-0"]
[Round "1"]
[TimeControl "180+2"]
[Date "2023.06.27"]
[WhiteClock "0:00:26"]
[BlackClock "0:00:42"]
[Board "189"]

1. d4 {[%clk 0:03:00]}  d6 {[%clk 0:03:00]} 2. Nf3 {[%clk 0:02:57]}  g6 {[%clk 0:02:59]} 3. g3 {[%clk 0:02:56]}  Bg7 {[%clk 0:02:59]} 4. Bg2 {[%clk 0:02:57]}  Nf6 {[%clk 0:02:58]} 5. O-O {[%clk 0:02:58]}  b6 {[%clk 0:02:57]} 6. b3 {[%clk 0:02:59]}  Bb7 {[%clk 0:02:57]} 7. Bb2 {[%clk 0:02:59]}  Nbd7 {[%clk 0:02:54]} 8. c4 {[%clk 0:02:59]}  O-O {[%clk 0:02:53]} 9. d5 {[%clk 0:02:59]}  e5 {[%clk 0:02:47]} 10. dxe6 {[%clk 0:02:54]}  fxe6 {[%clk 0:02:46]} 11. Nc3 {[%clk 0:02:46]}  e5 {[%clk 0:02:45]} 12. Ng5 {[%clk 0:02:38]}  Bxg2 {[%clk 0:02:39]} 13. Kxg2 {[%clk 0:02:38]}  Qe7 {[%clk 0:02:34]} 14. Nd5 {[%clk 0:02:26]}  Nxd5 {[%clk 0:02:27]} 15. Qxd5+ {[%clk 0:02:25]}  Kh8 {[%clk 0:02:27]} 16. h4 {[%clk 0:02:17]}  Rae8 {[%clk 0:02:16]} 17. Rad1 {[%clk 0:02:01]}  h6 {[%clk 0:02:11]} 18. Ne4 {[%clk 0:01:56]}  Nf6 {[%clk 0:02:02]} 19. Qb7 {[%clk 0:01:45]}  Nxe4 {[%clk 0:01:54]} 20. Qxe4 {[%clk 0:01:44]}  Qe6 {[%clk 0:01:43]} 21. a4 {[%clk 0:01:30]}  a5 {[%clk 0:01:41]} 22. e3 {[%clk 0:01:22]}  Rf7 {[%clk 0:01:40]} 23. Rd2 {[%clk 0:01:20]}  Ref8 {[%clk 0:01:38]} 24. Rh1 {[%clk 0:01:20]}  Qf5 {[%clk 0:01:33]} 25. Qxf5 {[%clk 0:01:16]}  gxf5 {[%clk 0:01:31]} 26. Kf3 {[%clk 0:00:56]}  e4+ {[%clk 0:01:23]} 27. Ke2 {[%clk 0:00:54]}  Bxb2 {[%clk 0:01:19]} 28. Rxb2 {[%clk 0:00:55]}  Rd7 {[%clk 0:01:14]} 29. Rd1 {[%clk 0:00:54]}  Rfd8 {[%clk 0:01:14]} 30. Rd5 {[%clk 0:00:54]}  Rf7 {[%clk 0:01:10]} 31. Rbd2 {[%clk 0:00:51]}  Kg7 {[%clk 0:01:08]} 32. Rc2 {[%clk 0:00:39]}  Kf6 {[%clk 0:01:06]} 33. c5 {[%clk 0:00:38]}  bxc5 {[%clk 0:01:05]} 34. Rcxc5 {[%clk 0:00:38]}  Rfd7 {[%clk 0:01:03]} 35. Rxf5+ {[%clk 0:00:36]}  Ke6 {[%clk 0:01:02]} 36. Rxa5 {[%clk 0:00:36]}  c5 {[%clk 0:01:00]} 37. Rh5 {[%clk 0:00:35]}  Rh8 {[%clk 0:00:56]} 38. g4 {[%clk 0:00:32]}  Rb7 {[%clk 0:00:55]} 39. Rb5 {[%clk 0:00:30]}  Kd7 {[%clk 0:00:42]} 40. Rxb7+ {[%clk 0:00:26]} 1-0


[Site "https://www.chess.com"]

[Event "Titled Tuesday Blitz June 27 Late 2023"]
[White "Munoz Misselis, Nelson Carlos"]
[Black "Chor, Kevin"]
[WhiteFideId "6601790"]
[BlackFideId "2090740"]
[WhiteElo "1759"]
[BlackElo "2532"]
[Result "0-1"]
[Round "1"]
[TimeControl "180+2"]
[Date "2023.06.27"]
[WhiteClock "0:00:00"]
[BlackClock "0:02:22"]
[Board "192"]

1. d4 {[%clk 0:02:59]}  Nf6 {[%clk 0:02:59]} 2. c4 {[%clk 0:02:59]}  g6 {[%clk 0:02:59]} 3. Nf3 {[%clk 0:02:59]}  Bg7 {[%clk 0:03:00]} 4. e3 {[%clk 0:03:00]}  O-O {[%clk 0:03:00]} 5. Nc3 {[%clk 0:03:00]}  d6 {[%clk 0:02:59]} 6. Bd3 {[%clk 0:03:01]}  Nbd7 {[%clk 0:02:56]} 7. O-O {[%clk 0:03:01]}  b6 {[%clk 0:02:56]} 8. Qe2 {[%clk 0:03:01]}  Bb7 {[%clk 0:02:57]} 9. Bd2 {[%clk 0:03:01]}  e5 {[%clk 0:02:56]} 10. dxe5 {[%clk 0:03:00]}  dxe5 {[%clk 0:02:57]} 11. Bc2 {[%clk 0:02:59]}  Qe7 {[%clk 0:02:55]} 12. Rad1 {[%clk 0:01:16]}  Nc5 {[%clk 0:02:50]} 13. b3 {[%clk 0:01:13]}  a5 {[%clk 0:02:48]} 14. Nb5 {[%clk 0:01:05]}  Nfe4 {[%clk 0:02:46]} 15. Bxe4 {[%clk 0:00:59]}  Bxe4 {[%clk 0:02:46]} 16. Ne1 {[%clk 0:00:57]}  f5 {[%clk 0:02:44]} 17. f3 {[%clk 0:00:56]}  Bb7 {[%clk 0:02:42]} 18. Nc3 {[%clk 0:00:54]}  Rad8 {[%clk 0:02:39]} 19. Bc1 {[%clk 0:00:51]}  c6 {[%clk 0:02:21]} 20. Rxd8 {[%clk 0:00:00]}  Rxd8 {[%clk 0:02:22]} 0-1


[Site "https://www.chess.com"]

[Event "Titled Tuesday Blitz June 27 Late 2023"]
[White "Vetoshko, Volodymyr"]
[Black "Carlsen, Magnus"]
[WhiteFideId "14122480"]
[BlackFideId "1503014"]
[WhiteElo "2672"]
[BlackElo "3293"]
[Result "0-1"]
[Round "2"]
[TimeControl "180+2"]
[Date "2023.06.27"]
[WhiteClock "0:00:00"]
[BlackClock "0:00:44"]
[Board "1"]

1. b3 {[%clk 0:02:59]}  c5 {[%clk 0:02:52]} 2. c4 {[%clk 0:02:55]}  Nc6 {[%clk 0:02:43]} 3. Bb2 {[%clk 0:02:55]}  Nf6 {[%clk 0:02:43]} 4. Nf3 {[%clk 0:02:52]}  d5 {[%clk 0:02:44]} 5. cxd5 {[%clk 0:02:52]}  Nxd5 {[%clk 0:02:45]} 6. g3 {[%clk 0:02:51]}  f6 {[%clk 0:02:43]} 7. Bg2 {[%clk 0:02:49]}  e5 {[%clk 0:02:43]} 8. d3 {[%clk 0:02:47]}  Be7 {[%clk 0:02:40]} 9. O-O {[%clk 0:02:46]}  O-O {[%clk 0:02:41]} 10. Nc3 {[%clk 0:02:46]}  Be6 {[%clk 0:02:39]} 11. Rc1 {[%clk 0:02:45]}  Nxc3 {[%clk 0:02:37]} 12. Bxc3 {[%clk 0:02:46]}  Qd7 {[%clk 0:02:36]} 13. Nd2 {[%clk 0:02:39]}  b5 {[%clk 0:02:34]} 14. Bb2 {[%clk 0:02:36]}  Rac8 {[%clk 0:02:34]} 15. Ne4 {[%clk 0:02:10]}  Nb4 {[%clk 0:02:33]} 16. a3 {[%clk 0:02:03]}  Nd5 {[%clk 0:02:33]} 17. Qc2 {[%clk 0:01:52]}  Nb6 {[%clk 0:02:21]} 18. Rfd1 {[%clk 0:01:47]}  Rfd8 {[%clk 0:02:21]} 19. Ba1 {[%clk 0:01:38]}  Qe8 {[%clk 0:02:20]} 20. Qb1 {[%clk 0:01:21]}  Qf7 {[%clk 0:02:19]} 21. Nd2 {[%clk 0:01:20]}  Bf8 {[%clk 0:02:12]} 22. h4 {[%clk 0:01:08]}  Rb8 {[%clk 0:01:51]} 23. Rf1 {[%clk 0:01:02]}  a5 {[%clk 0:01:46]} 24. Qc2 {[%clk 0:00:45]}  c4 {[%clk 0:01:39]} 25. dxc4 {[%clk 0:00:39]}  Bxa3 {[%clk 0:01:35]} 26. Rcd1 {[%clk 0:00:35]}  bxc4 {[%clk 0:01:34]} 27. bxc4 {[%clk 0:00:35]}  Rdc8 {[%clk 0:01:26]} 28. Be4 {[%clk 0:00:26]}  g6 {[%clk 0:01:18]} 29. h5 {[%clk 0:00:26]}  gxh5 {[%clk 0:01:18]} 30. Bf5 {[%clk 0:00:19]}  Nxc4 {[%clk 0:01:16]} 31. Bxe6 {[%clk 0:00:19]}  Qxe6 {[%clk 0:01:16]} 32. Nxc4 {[%clk 0:00:17]}  Rxc4 {[%clk 0:01:17]} 33. Qd3 {[%clk 0:00:13]}  Bb4 {[%clk 0:01:17]} 34. Qf3 {[%clk 0:00:12]}  h4 {[%clk 0:01:15]} 35. Kh2 {[%clk 0:00:10]}  Kh8 {[%clk 0:01:11]} 36. Rg1 {[%clk 0:00:09]}  Rg8 {[%clk 0:01:10]} 37. e4 {[%clk 0:00:05]}  hxg3+ {[%clk 0:00:56]} 38. Rxg3 {[%clk 0:00:06]}  Rcc8 {[%clk 0:00:51]} 39. Rdg1 {[%clk 0:00:06]}  Rxg3 {[%clk 0:00:50]} 40. Rxg3 {[%clk 0:00:06]}  Rg8 {[%clk 0:00:49]} 41. Rh3 {[%clk 0:00:06]}  Rg6 {[%clk 0:00:49]} 42. Qh5 {[%clk 0:00:05]}  Qg8 {[%clk 0:00:46]} 43. Qf3 {[%clk 0:00:03]}  Bd2 {[%clk 0:00:44]} 44. Bb2 {[%clk 0:00:00]}  Bf4+ {[%clk 0:00:44]} 0-1


[Site "https://www.chess.com"]